Cogmind - Beta 14 --- EXPLORER MODE // 2024.09.24 @ 20:55:57 Player: Connor Result: Destroyed by H-55 Commando with Gauss Rifle Performance ------------- Evolutions (2) 1000 Regions Visited (3) 600 Robots Destroyed (19) 95 Value Destroyed (417) 417 Prototype IDs (3) 60 Alien Tech Used (0) 0 Bonus (0) 0 TOTAL SCORE: 2172 Bonus ------- None Cogmind --------- Core Integrity 0/550 Matter 300/300 Energy 99/100 System Corruption 0% Temperature Cool (9) Movement Core (50) Location -8/Materials Parts ------- > --- POWER (2) -------- (None) > --- PROPULSION (4) --- (None) > --- UTILITY (3) ------ (None) > --- WEAPON (3) ------- (None) > --- INVENTORY (5) ---- Light Ion Engine Aluminum Leg EM Pulse Gun Medium Laser Improved Light Cannon Peak State ------------ > --- POWER ------------ Ion Engine Deuterium Engine > --- PROPULSION ------- Aluminum Leg Aluminum Leg Titanium Leg Titanium Leg > --- UTILITY ---------- Core Shielding Improved Light Armor Plating Reactive Plating > --- WEAPON ----------- Beam Rifle Improved Medium Laser Gauss Rifle > --- INVENTORY -------- Light Ion Engine Aluminum Leg EM Pulse Gun Medium Laser Improved Light Cannon [Rating: 28] Favorites ----------- Power Ion Engine Engine Ion Engine Propulsion Aluminum Leg Leg Aluminum Leg Utility Core Shielding Device Heat Sink Protection Core Shielding Weapon Beam Rifle Energy Gun Beam Rifle Ballistic Gun Gauss Rifle Ballistic Cannon Improved Light Cannon Launcher EMP Blaster Build | -11 -10 -9 -8 ------- Run | Yrd Mat Mat Mat Slots Evolved 5 | . 1 2 2 Power 1 | . 1 . . Propulsion 2 | . . . 2 Utility 1 | . . 1 . Weapon 1 | . . 1 . Parts Attached 27 | 7 2 8 10 Power 4 | 1 2 . 1 Engine 4 | 1 2 . 1 Core . | . . . . Reactor . | . . . . Propulsion 6 | 2 . 1 3 Treads . | . . . . Leg 6 | 2 . 1 3 Wheel . | . . . . Hover . | . . . . Flight . | . . . . Utility 10 | 2 . 3 5 Device 3 | . . 2 1 Storage . | . . . . Processor . | . . . . Hackware . | . . . . Protection 7 | 2 . 1 4 Artifact . | . . . . Weapon 7 | 2 . 4 1 Energy Gun 4 | 2 . 2 . Energy Cannon . | . . . . Ballistic Gun 1 | . . . 1 Ballistic Cannon 1 | . . 1 . Launcher 1 | . . 1 . Special Weapon . | . . . . Impact Weapon . | . . . . Slashing Weapon . | . . . . Piercing Weapon . | . . . . Special Melee Weapon . | . . . . Unidentified Prototypes 1 | . . 1 . Parts Lost 1 | . . . 1 Power . | . . . . Propulsion . | . . . . Utility . | . . . . Weapon 1 | . . . 1 Highest Loss Streak 1 | . . . 1 To Critical Strikes 1 | . . . 1 Average Slot Usage (%) 95 | . 98 98 85 Engine 19 | . 23 20 13 Leg 22 | . 25 19 28 Device 6 | . . 9 2 Protection 20 | . 25 19 18 Energy Gun 19 | . 25 19 13 Ballistic Cannon 1 | . . 1 . Launcher 6 | . . 7 4 Peak Build Rating 28 | 7 8 14 28 Average Rating 13 | 5 7 12 20 On Entrance 7 | . 7 8 14 Naked Turns 38 | . . . 38 Heaviest Build 38 | 11 18 25 38 Greatest Support 54 | 20 20 20 54 Greatest Overweight (x) 1 | . . 1 . Average Overweight (x) . | . . . . Largest Inventory Capacity 5 | 5 5 5 5 Average Capacity 5 | 5 5 5 5 Most Carried 5 | . 2 5 5 Average Carried 3 | . . 3 4 Final Capacity 5 | 5 5 5 5 Final Carried 5 | . 2 5 5 Class Distribution -------------------- 79% | Hacker-Tank 20% | Hacker-Mutant Dominant Class ---------------- Hacker-Mutant | -10/Materials Hacker-Tank | -9/Materials Hacker-Tank | -8/Materials Resources | -11 -10 -9 -8 ----------- Run | Yrd Mat Mat Mat Matter Collected 546 | 217 63 130 136 Remotely . | . . . . Salvage Created 741 | . 98 432 211 Parts 46 | . 5 28 13 Haulers Intercepted 3 | . . 2 1 Recyclers Shooed . | . . . . Parts Field Recycled . | . . . . Retrieved Matter . | . . . . Parts Self-Destructed . | . . . . Prevented . | . . . . Kills | -11 -10 -9 -8 ------- Run | Yrd Mat Mat Mat Combat Hostiles Destroyed 11 | . 2 7 2 Guns 8 | . 2 4 2 Cannons 2 | . . 2 . Classes Destroyed 10 | . 1 7 2 Worker 2 | . . 2 . Builder 1 | . . 1 . Hauler 3 | . . 2 1 Recycler 1 | . . . 1 Watcher 1 | . . 1 . Swarmer 2 | . . 2 . Grunt 4 | . 2 2 . Brawler 1 | . . 1 . Sentry 3 | . . 2 1 Hunter 1 | . . . 1 Best Kill Streak 6 | . 2 6 2 Combat Bots Only 2 | . 2 2 1 Max Kills in Single Turn 2 | . 1 2 1 Gunslinging . | . . . . Exploded . | . . . . Melee . | . . . . Uniques/NPCs Destroyed . | . . . . Combat | -11 -10 -9 -8 -------- Run | Yrd Mat Mat Mat Hostile Shots Fired 159 | . 10 41 108 Missed 34 | . 2 15 17 Damage Taken 1049 | . 52 200 797 Core 579 | . 11 12 556 Absorbed by Shields . | . . . . Redirected to Shielding 8 | . 2 1 5 Ignored by Resistances 704 | . 33 130 541 Regen/Repaired (Parts) 27 | . . 27 . Core Remaining (%) 97 | 100 95 97 . Volleys Fired 37 | . 5 23 9 Largest 3 | . 2 3 3 Hottest 145 | . 90 145 145 Shots Fired 92 | . 10 56 26 Gun 78 | . 10 45 23 Cannon 3 | . . 3 . Launcher 11 | . . 8 3 Special . | . . . . Kinetic 8 | . . 3 5 Thermal 68 | . 5 45 18 Explosive . | . . . . Electromagnetic 16 | . 5 8 3 Robot Hit Streak 27 | . 9 27 6 Robot Miss Streak 2 | . . 2 1 Penetration Max . | . . . . Secondary Targets 1 | . 1 . . Max Gunslinging Chain 1 | . 1 . . Shots Hit Robots 60 | . 9 36 15 Core Hits 28 | . 3 16 9 Critical Kills . | . . . . Critical Parts Destroyed . | . . . . Critical Strikes 4 | . . 3 1 Burn 3 | . . 2 1 Blast 1 | . . 1 . Melee Attacks . | . . . . Impact . | . . . . Slashing . | . . . . Piercing . | . . . . Sneak Attacks . | . . . . Combat Hostiles . | . . . . Follow-up Attacks . | . . . . Damage Inflicted 1254 | . 116 769 369 Guns 837 | . 116 481 240 Cannons 45 | . . 45 . Explosions 372 | . . 243 129 Melee . | . . . . Ramming . | . . . . Kinetic 90 | . . 45 45 Thermal 793 | . 48 515 230 Explosive . | . . . . Electromagnetic 371 | . 68 209 94 Impact . | . . . . Slashing . | . . . . Piercing . | . . . . Highest Corruption 1 | . 1 . . Average Corruption 1 | . 1 . . Corruption Purged . | . . . . Corruption Blocked . | . . . . Overload Shots . | . . . . Overflow Damage 18 | . . . 18 Projectiles . | . . . . Explosions 18 | . . . 18 Melee . | . . . . Knockbacks . | . . . . Impact . | . . . . Kinetic . | . . . . Secondary . | . . . . Self-Inflicted Damage 10 | . . 10 . Shots 1 | . . 1 . Rammed . | . . . . Targets Rammed 1 | . . . 1 Kicked 1 | . . . 1 Crushed . | . . . . Highest Temperature 537 | . 300 407 537 Average Temperature 177 | . 151 115 253 Received Heat Transfer 633 | . 36 75 522 Effects 15 | . 1 1 13 Shutdowns 6 | . . 1 5 Energy Bleed 1 | . 1 . . Interference 3 | . . . 3 Short Circuit 1 | . . . 1 Damage (major) 4 | . . . 4 Siege Activations . | . . . . Robots Corrupted . | . . . . Combat Hostiles . | . . . . Parts Fried 1 | . . 1 . Impact Corruptions . | . . . . Robots Melted 1 | . . 1 . Combat Hostiles 1 | . . 1 . Parts Melted 11 | . 1 8 2 Heat Transferred 2148 | . 148 1432 568 Parts Sabotaged . | . . . . Parts Stolen . | . . . . Parts Stripped . | . . . . Power Chain Reactions 4 | . . 3 1 Alert | -11 -10 -9 -8 ------- Run | Yrd Mat Mat Mat Peak Influence 174 | . 55 174 128 Initial 52 | . . 20 52 Average 76 | . 15 90 88 Maximum Alert Level . | . . . . Low Security (%) 100 | 100 100 100 100 Level 1 . | . . . . Level 2 . | . . . . Level 3 . | . . . . Level 4 . | . . . . Level 5 . | . . . . High Security . | . . . . Max Security . | . . . . Squads Dispatched 2 | . . 1 1 Investigation 1 | . . 1 . Extermination . | . . . . Reinforcement 1 | . . . 1 Assault . | . . . . Garrison . | . . . . Intercept . | . . . . Searches Triggered . | . . . . Construction Impeded 1 | . . . 1 Haulers Reinforced . | . . . . Active Scanning Responses . | . . . . Cargo Convoy Interrupts . | . . . . Stealth | -11 -10 -9 -8 --------- Run | Yrd Mat Mat Mat Distress Signals 1 | . . . 1 Communications Jammed . | . . . . Distress Signals . | . . . . Times Spotted 24 | . 5 9 10 Peak Tracking Total 6 | . 2 2 6 Tactical Retreats 1 | . 1 . . Traps | -11 -10 -9 -8 ------- Run | Yrd Mat Mat Mat Traps Triggered 1 | . 1 . . Indirectly . | . . . . Trap Hack Attempts . | . . . . Triggered . | . . . . Disarmed . | . . . . Reprogrammed . | . . . . Reused . | . . . . Traps Extracted . | . . . . Installed . | . . . . Triggered . | . . . . Machines | -11 -10 -9 -8 ---------- Run | Yrd Mat Mat Mat Machines Disabled . | . . . . Max in Single Turn . | . . . . Machines Repaired . | . . . . Machines Dismantled . | . . . . Machines Sabotaged . | . . . . Overloaded Fab Kills . | . . . . Hacking | -11 -10 -9 -8 --------- Run | Yrd Mat Mat Mat Machines Accessed 2 | . . 2 . Terminals 1 | . . 1 . Fabricators . | . . . . Repair Stations 1 | . . 1 . Recycling Units . | . . . . Scanalyzers . | . . . . Garrison Access . | . . . . Total Hacks 6 | . . 6 . Successful 6 | . . 6 . Failed . | . . . . Catastrophic . | . . . . Database Lockouts . | . . . . Manual . | . . . . Terminals 1 | . . 1 . Fabricators . | . . . . Repair Stations 5 | . . 5 . Recycling Units . | . . . . Scanalyzers . | . . . . Garrison Access . | . . . . Terminal Hacks 1 | . . 1 . Prototype ID Bank 1 | . . 1 . Fabricator Hacks . | . . . . Repair Station Hacks 5 | . . 5 . Scan Component 3 | . . 3 . Repair 2 | . . 2 . Recycling Unit Hacks . | . . . . Scanalyzer . | . . . . Garrison Access Hacks . | . . . . Unauthorized Hacks . | . . . . Terminals . | . . . . Fabricators . | . . . . Repair Stations . | . . . . Recycling Units . | . . . . Scanalyzers . | . . . . Garrison Access . | . . . . Data Cores Recovered . | . . . . Used . | . . . . Hacking Detections 2 | . . 2 . Full Trace Events 1 | . . 1 . Feedback Events . | . . . . Feedback Blocked . | . . . . Robot Schematics Acquired . | . . . . Robots Built . | . . . . Authchips . | . . . . Time . | . . . . Total Robot Build Rating . | . . . . Part Schematics Acquired . | . . . . Parts Built . | . . . . Authchips . | . . . . Time . | . . . . Total Part Build Rating . | . . . . Parts Repaired 2 | . . 2 . Time 52 | . . 52 . Parts Recycled . | . . . . Recycled Matter . | . . . . Retrieved Matter . | . . . . Retrieved Components . | . . . . Parts Scanalyzed . | . . . . Part Schematics Acquired . | . . . . Parts Damaged . | . . . . Bothacking | -11 -10 -9 -8 ------------ Run | Yrd Mat Mat Mat Used RIF Installer . | . . . . Robots Hacked . | . . . . Non-combat . | . . . . Combat . | . . . . Robot Hacks Applied . | . . . . Relay Couplers Released . | . . . . Fabnet Peak Effective % . | . . . . Robots Rewired . | . . . . Allies Hacked . | . . . . Hacks Repelled . | . . . . Allies | -11 -10 -9 -8 -------- Run | Yrd Mat Mat Mat Total Allies . | . . . . Largest Group . | . . . . Highest-Rated Group . | . . . . Highest-Rated Ally . | . . . . Total Orders . | . . . . Ally Attacks . | . . . . Total Damage . | . . . . Kills . | . . . . Allies Corrupted . | . . . . Allies Melted . | . . . . Intel | -11 -10 -9 -8 ------- Run | Yrd Mat Mat Mat Robot Analysis Total . | . . . . Derelict Logs Recovered . | . . . . Drone Launches . | . . . . Drone Recoveries . | . . . . Exploration | -11 -10 -9 -8 ------------- Run | Yrd Mat Mat Mat Turns Passed 1218 | 77 137 774 230 Spaces Moved 592 | 60 95 336 101 Core 12 | 7 . . 5 Treads . | . . . . Legs 580 | 53 95 336 96 Wheels . | . . . . Hover . | . . . . Flight . | . . . . Fastest Speed 50 | 50 120 120 50 Average Speed 158 | 111 120 188 120 Slowest Speed 190 | 120 120 190 126 Overloaded Moves . | . . . . Propulsion Burnouts . | . . . . Robots Hopped . | . . . . Cave-ins Triggered . | . . . . Exploration Rate (%) 16 | 4 19 31 11 Regions Visited 3 Branch Regions . Pre-discovered Areas . | . . . . Known Exits Taken 3 | 1 1 1 . Unknown Exits Taken . | . . . . Scrap Searched . | . . . . Spaces Dug . | . . . . Terrain Destroyed 4 | . . 1 3 Melee . | . . . . Projectile . | . . . . AOE 4 | . . 1 3 Terrain Rammed . | . . . . Walls Destroyed . | . . . . Machines Disabled . | . . . . Actions | -11 -10 -9 -8 --------- Run | Yrd Mat Mat Mat Total 788 | 66 107 427 188 Wait 118 | . 4 55 59 Move 589 | 59 94 335 101 Hop . | . . . . Pick Up 3 | . 1 2 . Fast Attach 23 | 7 2 5 9 Attach 4 | . . 3 1 Detach 6 | . 1 4 1 Swap . | . . . . Drop 7 | . . . 7 Fire 37 | . 5 23 9 Melee . | . . . . Ram . | . . . . Kick 1 | . . . 1 Crush . | . . . . Escape Stasis . | . . . . Rewire . | . . . . Trap . | . . . . Miscellaneous . | . . . . Route ------- -11/Scrapyard -10/Materials -9/Materials -8/Materials History --------- Turn | Location | Event 5 | -11/Scrapyard | Identified exit to Materials 5 | -11/Scrapyard | Discovered exit to Materials (range 14) 78 | -11/Scrapyard | Entered Materials 78 | -10/Materials | Evolved 1 slot: Power x1 210 | -10/Materials | Identified exit to Materials 210 | -10/Materials | Discovered exit to Materials (range 5) 215 | -10/Materials | Entered another Materials area 215 | -9/Materials | Evolved 2 slots: Utility x1, Weapon x1 526 | -9/Materials | Build established: Hacker-Tank 540 | -9/Materials | Repaired Lgt. Armor Plating 566 | -9/Materials | Repaired Heat Sink 970 | -9/Materials | Identified exit to Materials 970 | -9/Materials | Discovered exit to Materials (range 9) 989 | -9/Materials | Entered another Materials area 989 | -8/Materials | Evolved 2 slots: Propulsion x2 1181 | -8/Materials | Released all parts (11) 1202 | -8/Materials | Core integrity fell below 50% 1212 | -8/Materials | Core integrity fell below 20% 1219 | -8/Materials | Destroyed by H-55 Commando with Gauss Rifle Last Messages --------------- Critical hit (Burn: +37). Slug penetrates Wall. Released Imp. Light Armor Plating. Released Deuterium Engine. Released Titanium Leg. Released Imp. Medium Laser. Released Beam Rifle. Released Broken Aluminum Leg. Released Core Shielding. Released Ion Engine. Released Aluminum Leg. Released Reactive Plating. Penetrated by Slug. Critical hit (Burn: +37). H-55 Commando suffers critical hit (Burn). Penetrated by Slug. Critical hit (Burn: +37). Penetrated by Slug. U-05 Engineer builds a Door. Penetrated by Slug. Map ----- +----------------------------------------------------+ | ?????????????????????????????????????????????# | | ?????????????????????????????????????????????+ | | ?????????????????????????????????????????????# | | ?????????????????????????????????????????????# # | | ?????????????????????????????????????????????# # | | ?????????????????????????????????????????????# # | | ??????????????????????????????????????######## # | | ??????????????????????????????????????# # | | ??????????????????????????????????????# # | | ???????????????????????????????######## # | | ???????????????????????????????# ! [# ######## | | ???????????????????????????????#]! ! # #??????? | | ???????????????????????????????# !! # #??????? | | ???????????# ##+########??????#==! / #??????? | | ???????????# "% ########=== # #??????? | | ?????????+ % ![!%|[ / !== [# #??????? | | ??????????????######### ############### #??????? | | ??????????????????????#u#??# ! = # #?????? | | ??????????????????????#k#??# # #?????? | | ??????????????????????#g##?# """ + #?????? | | ??????????????????????#g#### """"" # #?????? | | ??????????????????????#hu*[+ # #?????? | | ??????????????????????#ug=*#! """"" ## ##?????? | | ??????????????????????#![==# ] """ ## #??????? | | ??????????????????????# + #? #??????? | | ??????????????????????# @ ##########?? #??????? | | ??????????????????????# #??????????? #??????? | | ????????????????????? ?????????? #??????? | | ??????????????????? ######????????? ???????? | | ????????????????? ?????????????????????????? | | ???????????????# ?????????????????????????? | | ???????????????# ?????????????????????????? | | ???????????????# ?????????????????????????? | | ?????????????? ?????????????????????????? | | ????????????? ?????????????????????????? | | ?????????????? ?????????????????????????? | | ??????????????## ##??????????????????????????? | | ????????????????# #????????????????????????????? | | ?????????????????? ??????????????????????????????? | | ?????????????????????????????????????????????????? | | ?????????????????????????????????????????????????? | | ?????????????????????????????????????????????????? | | ?????????????????????????????????????????????????? | | ?????????????????????????????????????????????????? | | ?????????????????????????????????????????????????? | | ?????????????????????????????????????????????????? | | ?????????????????????????????????????????????????? | | ?????????????????????????????????????????????????? | | ?????????????????????????????????????????????????? | | ?????????????????????????????????????????????????? | +----------------------------------------------------+ Best States ------------- Heat Dissipation 41 Energy Generation 19 Energy Capacity 425 Matter Stores 300 Matter Capacity 300 Sight Range 16 Terrain Scan Density 10 Armor Coverage 300 Resistance: KI 55 Resistance: TH 35 Resistance: EX 35 Resistance: EM 35 Resistance: I 35 Resistance: S 35 Resistance: P 35 Core Shielding 20 Evasion (%) 55 Offensive Hacking 20 Item Schematics ----------------- None Robot Schematics ------------------ None Fabricated ------------ Nothing Alien Tech Used ----------------- None Achievements -------------- It's Just You Loot Pinata Part-time Mechanic Challenges ------------ None Game ------ Seed AblativeGrapheneMagmablaster Manual? 0 Play Time 00:19:32 Cumulative 2.6 hours Start 2024.09.24 @ 20:38:57 End 2024.09.24 @ 20:55:57 Sessions 1 Manual Loads 0 Difficulty Explorer Special Mode None Game No. 4 Rogue 3 Adventurer 0 Explorer 1 Win Type - Total 0 Types 0/0/0/0/0/0/0/0/0 Lore% 1 Gallery% 6 Achievement% 8 Wizard Run 0 Options --------- Layout 1 ASCII 0 Keyboard 1 Movement Arrows Keybinds 0 Fullscreen 1 Font 24/Smallcaps Map View 50x35 Zoom Use 0% Tactical HUD 0 Map Filters NONE Filters NONE Steam 1 RUN: 88426919-dec4-4714-b57a-59ff92a81986